Cogmind - Beta 9.6 @@@ ROGUE MODE // 2020.06.12 @ 05:41:31 // Winter2019/RPGLIKE Player: Rod99 Result: Destroyed by G-47 Trooper with Particle Gun Performance ------------- Evolutions (1) 500 Regions Visited (2) 400 Robots Destroyed (8) 40 Value Destroyed (224) 224 Prototype IDs (0) 0 Alien Tech Used (0) 0 Bonus (0) 0 TOTAL SCORE: 1164 Bonus ------- None Cogmind --------- Core Integrity 0/1050 Matter 376/400 Energy 265/265 System Corruption 0% Temperature Cool (9) Movement Treading (160) Location -9/Materials Parts ------- > --- POWER (1) -------- Improved Ion Engine > --- PROPULSION (1) --- Light Treads > --- UTILITY (1) ------ Medium Matter Pod > --- WEAPON (1) ------- Light Assault Rifle > --- INVENTORY (0) ---- (None) Peak State ------------ > --- POWER ------------ Ion Engine > --- PROPULSION ------- Light Treads > --- UTILITY ---------- Weight Redist. System > --- WEAPON ----------- Light Assault Rifle > --- INVENTORY -------- (None) [Rating: 5] Favorites ----------- Power Ion Engine Engine Ion Engine Propulsion Light Treads Treads Light Treads Utility Medium Matter Pod Device Weight Redist. System Storage Medium Matter Pod Weapon Light Assault Rifle Ballistic Gun Light Assault Rifle Build | -11 -10 -9 ------- Run | Scr Mat Mat Slots Evolved . | . . . Power . | . . . Propulsion . | . . . Utility . | . . . Weapon . | . . . Parts Attached 6 | 3 . 3 Power 2 | 1 . 1 Engine 2 | 1 . 1 Core . | . . . Reactor . | . . . Propulsion 1 | 1 . . Treads 1 | 1 . . Leg . | . . . Wheel . | . . . Hover . | . . . Flight . | . . . Utility 2 | . . 2 Device 1 | . . 1 Storage 1 | . . 1 Processor . | . . . Hackware . | . . . Protection . | . . . Artifact . | . . . Weapon 1 | 1 . . Energy Gun . | . . . Energy Cannon . | . . . Ballistic Gun 1 | 1 . . Ballistic Cannon . | . . . Launcher . | . . . Special Weapon . | . . . Impact Weapon . | . . . Slashing Weapon . | . . . Piercing Weapon . | . . . Special Melee Weapon . | . . . Unidentified Prototypes . | . . . Parts Lost . | . . . Power . | . . . Propulsion . | . . . Utility . | . . . Weapon . | . . . Highest Loss Streak . | . . . Average Slot Usage (%) 83 | . 75 89 Engine 25 | . 25 25 Treads 25 | . 25 25 Storage 8 | . . 14 Ballistic Gun 25 | . 25 25 Naked Turns . | . . . Heaviest Build 10 | 6 6 10 Greatest Support 20 | 20 20 20 Greatest Overweight (x) . | . . . Average Overweight (x) . | . . . Largest Inventory Capacity . | . . . Average Capacity . | . . . Most Carried . | . . . Average Carried . | . . . Final Capacity . | . . . Final Carried . | . . . Class Distribution -------------------- 100% | Mutant Dominant Class ---------------- Mutant | -10/Materials Mutant | -9/Materials Resources | -11 -10 -9 ----------- Run | Scr Mat Mat Matter Collected 399 | 230 17 152 Remotely . | . . . Salvage Created 100 | . 19 81 Parts 17 | . 3 14 Haulers Intercepted . | . . . Recyclers Shooed . | . . . Parts Field Recycled . | . . . Retrieved Matter . | . . . Parts Self-Destructed . | . . . Prevented . | . . . Kills | -11 -10 -9 ------- Run | Scr Mat Mat Combat Hostiles Destroyed 8 | . 3 5 Guns 8 | . 3 5 Classes Destroyed 3 | . 1 2 Swarmer 3 | . 3 . Grunt 4 | . . 4 Sentry 1 | . . 1 Best Kill Streak 3 | . 3 2 Combat Bots Only 3 | . 3 2 Max Kills in Single Turn 1 | . 1 1 Gunslinging . | . . . Exploded . | . . . Melee . | . . . Uniques/NPCs Destroyed . | . . . Combat | -11 -10 -9 -------- Run | Scr Mat Mat Damage Taken 1435 | . 144 1291 Core 1206 | . 116 1090 Absorbed by Shields . | . . . Redirected to Core 755 | . 76 679 Core Remaining (%) 94 | 100 89 . Volleys Fired 63 | . 17 46 Largest 1 | . 1 1 Hottest 20 | . 20 20 Shots Fired 63 | . 17 46 Gun 63 | . 17 46 Cannon . | . . . Launcher . | . . . Special . | . . . Kinetic 63 | . 17 46 Thermal . | . . . Explosive . | . . . Electromagnetic . | . . . Robot Hit Streak 30 | . 9 30 Robot Miss Streak 1 | . 1 1 Penetration Max . | . . . Secondary Targets . | . . . Shots Hit Robots 57 | . 14 43 Core Hits 22 | . 5 17 Critical Hits 1 | . . 1 Critical Kills 1 | . . 1 Critical Parts Destroyed . | . . . Melee Attacks . | . . . Impact . | . . . Slashing . | . . . Piercing . | . . . Sneak Attacks . | . . . Combat Hostiles . | . . . Follow-up Attacks . | . . . Damage Inflicted 441 | . 114 327 Guns 441 | . 114 327 Cannons . | . . . Explosions . | . . . Melee . | . . . Ramming . | . . . Kinetic 441 | . 114 327 Thermal . | . . . Explosive . | . . . Electromagnetic . | . . . Impact . | . . . Slashing . | . . . Piercing . | . . . Highest Corruption . | . . . Average Corruption . | . . . Corruption Purged . | . . . Overload Shots . | . . . Overflow Damage . | . . . Projectiles . | . . . Explosions . | . . . Melee . | . . . Knockbacks . | . . . Impact . | . . . Kinetic . | . . . Secondary . | . . . Self-Inflicted Damage . | . . . Shots . | . . . Rammed . | . . . Targets Rammed . | . . . Kicked . | . . . Crushed . | . . . Highest Temperature 44 | . . 44 Average Temperature 12 | . . 12 Received Heat Transfer 663 | . . 663 Siege Activations . | . . . Robots Corrupted . | . . . Combat Hostiles . | . . . Parts Fried . | . . . Impact Corruptions . | . . . Robots Melted . | . . . Combat Hostiles . | . . . Parts Melted . | . . . Heat Transferred . | . . . Parts Sabotaged . | . . . Parts Stolen . | . . . Parts Stripped . | . . . Power Chain Reactions . | . . . Missiles Intercepted . | . . . Alert | -11 -10 -9 ------- Run | Scr Mat Mat Peak Influence 187 | . 89 187 Average Influence 74 | . 66 100 Maximum Alert Level . | . . . Low Security (%) 100 | 100 100 100 Level 1 . | . . . Level 2 . | . . . Level 3 . | . . . Level 4 . | . . . Level 5 . | . . . High Security . | . . . Max Security . | . . . Squads Dispatched 1 | . . 1 Investigation 1 | . . 1 Extermination . | . . . Reinforcement . | . . . Assault . | . . . Garrison . | . . . Intercept . | . . . Construction Impeded . | . . . Haulers Reinforced . | . . . Stealth | -11 -10 -9 --------- Run | Scr Mat Mat Distress Signals 2 | . 1 1 Communications Jammed . | . . . Distress Signals . | . . . Times Spotted 14 | . 4 10 Peak Tracking Total 6 | . 5 6 Tactical Retreats 1 | . 1 . Traps | -11 -10 -9 ------- Run | Scr Mat Mat Traps Triggered . | . . . Indirectly . | . . . Trap Hack Attempts . | . . . Triggered . | . . . Disarmed . | . . . Reprogrammed . | . . . Reused . | . . . Traps Extracted . | . . . Installed . | . . . Triggered . | . . . Machines | -11 -10 -9 ---------- Run | Scr Mat Mat Machines Disabled . | . . . Max in Single Turn . | . . . Machines Sabotaged . | . . . Garrisons Compromised . | . . . Overloaded Fab Kills . | . . . Fab Network Shutdowns . | . . . Hacking | -11 -10 -9 --------- Run | Scr Mat Mat Machines Accessed 4 | . 3 1 Terminals 4 | . 3 1 Fabricators . | . . . Repair Stations . | . . . Recycling Units . | . . . Scanalyzers . | . . . Garrison Access . | . . . Total Hacks 12 | . 8 4 Successful 4 | . 3 1 Failed 8 | . 5 3 Catastrophic 3 | . 1 2 Database Lockouts . | . . . Manual 6 | . 4 2 Terminals 12 | . 8 4 Fabricators . | . . . Repair Stations . | . . . Recycling Units . | . . . Scanalyzers . | . . . Garrison Access . | . . . Terminal Hacks 4 | . 3 1 Emergency Access Points 1 | . 1 . Locate Traps 1 | . 1 . Zone Layout 2 | . 1 1 Fabricator Hacks . | . . . Repair Station Hacks . | . . . Recycling Unit Hacks . | . . . Scanalyzer . | . . . Garrison Access Hacks . | . . . Unauthorized Hacks . | . . . Terminals . | . . . Fabricators . | . . . Repair Stations . | . . . Recycling Units . | . . . Scanalyzers . | . . . Garrison Access . | . . . Data Cores Recovered . | . . . Used . | . . . Hacking Detections 4 | . 3 1 Full Trace Events 3 | . 2 1 Feedback Events . | . . . Feedback Blocked . | . . . Robot Schematics Acquired . | . . . Robots Built . | . . . Matter . | . . . Time . | . . . Total Robot Build Rating . | . . . Part Schematics Acquired . | . . . Parts Built . | . . . Matter . | . . . Time . | . . . Total Part Build Rating . | . . . Parts Repaired . | . . . Time . | . . . Parts Recycled . | . . . Recycled Matter . | . . . Retrieved Matter . | . . . Retrieved Components . | . . . Parts Scanalyzed . | . . . Part Schematics Acquired . | . . . Parts Damaged . | . . . Bothacking | -11 -10 -9 ------------ Run | Scr Mat Mat Used RIF Installer . | . . . Robots Hacked . | . . . Non-combat . | . . . Combat . | . . . Robot Hacks Applied . | . . . Relay Couplers Released . | . . . Robots Rewired . | . . . Allies Hacked . | . . . Hacks Repelled . | . . . Allies | -11 -10 -9 -------- Run | Scr Mat Mat Total Allies . | . . . Largest Group . | . . . Highest-Rated Group . | . . . Highest-Rated Ally . | . . . Total Orders . | . . . Ally Attacks . | . . . Total Damage . | . . . Kills . | . . . Allies Corrupted . | . . . Allies Melted . | . . . Intel | -11 -10 -9 ------- Run | Scr Mat Mat Robot Analysis Total . | . . . Derelict Logs Recovered . | . . . Drone Launches . | . . . Drone Recoveries . | . . . Exploration | -11 -10 -9 ------------- Run | Scr Mat Mat Turns Passed 435 | 61 153 221 Spaces Moved 191 | 40 73 78 Core 6 | 6 . . Treads 185 | 34 73 78 Legs . | . . . Wheels . | . . . Hover . | . . . Flight . | . . . Fastest Speed 50 | 50 160 160 Average Speed 156 | 143 160 160 Slowest Speed 160 | 160 160 160 Overloaded Moves . | . . . Propulsion Burnouts . | . . . Robots Hopped . | . . . Cave-ins Triggered . | . . . Exploration Rate (%) 12 | 3 25 10 Regions Visited 2 Branch Regions . Pre-discovered Areas . | . . . Known Exits Taken . | . . . Unknown Exits Taken 2 | 1 1 . Scrap Searched . | . . . Spaces Dug . | . . . Terrain Destroyed . | . . . Melee . | . . . Projectile . | . . . AOE . | . . . Actions | -11 -10 -9 --------- Run | Scr Mat Mat Total 275 | 42 96 137 Wait 6 | . 4 2 Move 189 | 39 72 78 Hop . | . . . Pick Up . | . . . Fast Attach 5 | 3 . 2 Attach . | . . . Detach . | . . . Swap 1 | . . 1 Drop 2 | . . 2 Fire 63 | . 17 46 Melee . | . . . Ram . | . . . Kick . | . . . Crush . | . . . Escape Stasis . | . . . Rewire . | . . . Trap . | . . . Miscellaneous 9 | . 3 6 Route ------- -11/Scrapyard -10/Materials -9/Materials History --------- Turn | Location | Event 3 | -11/Scrapyard | Discovered new exit (range 15) 62 | -11/Scrapyard | Entered Materials 169 | -10/Materials | Discovered new exit (range 23) 215 | -10/Materials | Entered another Materials area 217 | -9/Materials | Reached level 2 324 | -9/Materials | Build established: Mutant 372 | -9/Materials | Core integrity fell below 50% 385 | -9/Materials | Core integrity fell below 20% 436 | -9/Materials | Destroyed by G-47 Trooper with Particle Gun Last Messages --------------- 00330_ G-34 Mercenary unfolds itself. 00347_ U-05 Engineer lays Concrete. 00348_ Y-45 Defender destroyed. 00353_ U-05 Engineer lays Concrete. 00356_ R-06 Scavenger collects Aluminum Leg. 00359_ R-06 Scavenger collects Ion Engine. 00362_ Atomic Centrifuge disabled. 00363_ R-06 Scavenger collects Aluminum Leg. 00367_ Destroyed Heat Sink. 00368_ R-06 Scavenger collects Lgt. Treads. 00371_ R-06 Scavenger collects Beam Rifle. 00374_ Acquired 71 matter. 00375_ R-06 Scavenger collects Heat Sink. 00376_ Y-45 Defender destroyed. 00378_ Acquired 81 matter. 00378_ R-06 Scavenger collects Hvy. Assault Rifle. 00389_ U-05 Engineer builds a Door. 00421_ Upgraded: Core Integrity (+50) 00425_ G-47 Trooper destroyed. 00430_ G-34 Mercenary destroyed. Map ----- +----------------------------------------------------+ | ?????????????????????????????????????????????????? | | ?????????????????????????????????????????????????? | | ?????????????????????????????????????????????????? | | ?????????????????????????????????????????????????? | | ?????????????????????????????????????????????????? | | ?????????????????????????????????????????????????? | | ?????????????????????????????????????????????????? | | ?????????????????????????????????????????????????? | | ?????????????????????????????????????????????????? | | ?????????????????????????????????????????????????? | | ?????????????????????????????????????????????????? | | ???????????? ???????????????????????????????????? | | ???????####? ?????????????????????????????????? | | ???? ?????????????????????????????????? | | ?? #????????????????????????????????? | | !=] T ?????????????????????????????????? | | !=] ?????????????????????????????????? | | %!= ??????????????????????????????????? | | " ??????????????????#???????????????? | | #?????????######## #???????????????? | | #?????????# ????????????????? | | #?????????# """ #???????????????? | | #?????????#% """ +???????????????? | | #????######== """k#???????????????? | | #????# gg!!! """ #???????????????? | | #????# ####@!! """ #???????????????? | | ### ! ######+####!! #???????????????? | | #?# * # ## #???????????????? | | #?# " # ## #???????????????? | | ##?# """ # ###########???????????????? | | ???# """ # + ????????????????? | | ???# *% / ########??????????????????? | | ???# = # #?????????????????????????? | | ???# ######[# #?????????????????????????? | | ???# #????#!# #?????????????????????????? | | ???# #????# # #?????????????????????????? | | ???# ######+######+###?????????????????????????? | | #### # #??????????????????????????????????? | | # # """ #??????????????????????????????????? | | ! # # """ #??????????????????????????????????? | | + + """ #??????????????????????????????????? | | # # #??????????????????????????????????? | | ! # # #??????????????????????????????????? | | # ########??????????????????????????????????? | | ########?????????????????????????????????????????? | | ?????????????????????????????????????????????????? | | ?????????????????????????????????????????????????? | | ?????????????????????????????????????????????????? | | ?????????????????????????????????????????????????? | | ?????????????????????????????????????????????????? | +----------------------------------------------------+ Best States ------------- Heat Dissipation 25 Energy Generation 12 Energy Capacity 265 Matter Stores 390 Matter Capacity 400 Sight Range 16 Terrain Scan Density 10 Evasion (%) 40 Recoil Reduction 1 Item Schematics ----------------- None Robot Schematics ------------------ None Fabricated ------------ Nothing Alien Tech Used ----------------- None Achievements -------------- None Challenges ------------ None RPGLIKE | -11 -10 -9 --------- Run | Scr Mat Mat Levels Raised 1 | . . 1 XP Earned 5500 | 3000 350 2150 XP Spent 4485 | 3000 . 1485 Upgrades 15 | 5 . 10 Core Integrity 9 | . . 9 Ranged Accuracy 6 | 5 . 1 Protomatter Created 192 | . 18 174 Integrity Restored 184 | . 54 130 Core 150 | . 54 96 Parts 34 | . . 34 Protomatter Decayed 4 | . . 4 Game ------ Seed DynamicCoreWell Manual? 0 Play Time 00:07:03 Cumulative 17.2 hours Start 2020.06.12 @ 05:33:19 End 2020.06.12 @ 05:41:31 Sessions 1 Manual Loads 0 Difficulty Rogue Special Mode Winter2019/RPGLIKE Game No. 27 Rogue 27 Adventurer 0 Explorer 0 Win Type - Total 0 Types 0/0/0/0/0/0/0 Lore% 19 Gallery% 20 Achievement% 16 Wizard Run 0 Options --------- ASCII 0 Keyboard 0 Movement Numpad Keybinds 0 Fullscreen 1 Font 12/Smallcaps Map View 83x54 Tactical HUD 1 Map Filters NONE Filters NONE Steam 1 RUN: c775ee88-32d1-4ac3-acc7-2c222ac52ee2